Cogmind - Beta 15 @@@ ROGUE MODE // 2025.08.16 @ 18:45:05 Player: LameThyst Result: Self-destructed Performance ------------- Evolutions (3) 1500 Regions Visited (7) 1400 Robots Destroyed (85) 425 Value Destroyed (2194) 2194 Prototype IDs (38) 760 Alien Tech Used (0) 0 Bonus (500) 500 TOTAL SCORE: 6779 Bonus ------- Entered Garrisons 200 Aligned with FarCom 300 Cogmind --------- Core Integrity 443/700 Matter 13/300 Energy 90/100 System Corruption 12% Temperature Cool (0) Movement Flying (104) Ox1 Location -7/Garrison Parts ------- > --- POWER (1) -------- (None) > --- PROPULSION (6) --- VTOL Module VTOL Module Improved Cesium-ion Thruster > --- UTILITY (4) ------ Large Storage Unit Structural Scanner > --- WEAPON (2) ------- High-powered Shotgun > --- INVENTORY (15) --- Improved Deuterium Engine Improved Heat Sink Experimental Sensor Array Transmission Jammer Cooled Plasma Rifle Gauss Rifle Advanced Assault Cannon Remote Datajack Impact Mace Peak State ------------ > --- POWER ------------ Cooled Deuterium Engine > --- PROPULSION ------- Improved VTOL Module Improved Cesium-ion Thruster Flying Fortress v7 > --- UTILITY ---------- Large Storage Unit Structural Scanner Seismic Detector Improved Medium Armor Plating > --- WEAPON ----------- Cooled Plasma Rifle Impact Mace > --- INVENTORY -------- Improved Deuterium Engine Improved VTOL Module Xenon Bombardment Thruster Xenon Bombardment Thruster Improved Heat Sink Experimental Sensor Array Improved Signal Interpreter Transmission Jammer EM Shotgun Enhanced Autogun Gauss Rifle Advanced Assault Cannon Advanced EMP Blaster Grenade Launcher Remote Datajack [Rating: 70] Favorites ----------- Power Cooled Ion Engine Engine Cooled Ion Engine Propulsion Flying Fortress v7 Treads Light Treads Leg Aluminum Leg Wheel Wheel Flight Unit Flying Fortress v7 Utility Seismic Detector Device Seismic Detector Storage Large Storage Unit Protection Improved Medium Armor Plating Weapon Autogun Energy Gun Particle Gun Ballistic Gun Autogun Ballistic Cannon Advanced Assault Cannon Launcher Grenade Launcher Special Weapon Mining Laser Impact Weapon Impact Mace Slashing Weapon Axe Build | -11 -10 -10 -10 -9 -8 -7 -7 ------- Run | Yrd Mat Min Exi Min Mat Fac Gar Slots Evolved 6 | . . . . . 4 2 . Power . | . . . . . . . . Propulsion 4 | . . . . . 2 2 . Utility 2 | . . . . . 2 . . Weapon . | . . . . . . . . Parts Attached 64 | 7 16 2 . . 12 23 4 Power 4 | 1 1 . . . . 2 . Engine 4 | 1 1 . . . . 2 . Core . | . . . . . . . . Reactor . | . . . . . . . . Propulsion 17 | 2 5 . . . 1 7 2 Treads 1 | . 1 . . . . . . Leg 3 | 2 1 . . . . . . Wheel 3 | . 3 . . . . . . Hover . | . . . . . . . . Flight 10 | . . . . . 1 7 2 Utility 19 | 2 5 1 . . 5 5 1 Device 7 | 1 2 1 . . 2 1 . Storage 5 | 1 2 . . . 1 1 . Processor . | . . . . . . . . Hackware . | . . . . . . . . Protection 7 | . 1 . . . 2 3 1 Artifact . | . . . . . . . . Weapon 24 | 2 5 1 . . 6 9 1 Energy Gun 4 | . 1 . . . 1 2 . Energy Cannon . | . . . . . . . . Ballistic Gun 8 | 2 2 . . . 3 . 1 Ballistic Cannon 2 | . . . . . . 2 . Launcher 5 | . 2 1 . . 1 1 . Special Weapon 1 | . . . . . 1 . . Impact Weapon 3 | . . . . . . 3 . Slashing Weapon 1 | . . . . . . 1 . Piercing Weapon . | . . . . . . . . Special Melee Weapon . | . . . . . . . . Unidentified Prototypes 15 | . 1 1 . . 5 8 . Corrupted Parts 1 | . . . . . . 1 . System Corruption 3 | . . . . . . 3 . Parts Lost 16 | . 1 . . . 2 3 10 Power 1 | . . . . . . . 1 Propulsion 5 | . . . . . . 2 3 Utility 5 | . 1 . . . 1 . 3 Weapon 5 | . . . . . 1 1 3 Highest Loss Streak 6 | . 1 . . . 1 2 6 To Critical Strikes 1 | . . . . . . . 1 Average Backups 13 | 3 10 17 17 17 13 14 10 Power 1 | . 1 1 2 3 2 1 1 Propulsion 1 | . 1 2 2 3 2 2 . Utility 4 | . 3 6 4 4 3 4 3 Weapon 5 | 1 3 7 6 6 5 5 5 Tool/Special . | . . . . . . . . Unused Backups 33 | 1 7 1 2 . 8 10 4 Power 6 | . 2 . . . 2 1 1 Propulsion 3 | . 1 . . . 1 1 . Utility 12 | . 3 1 2 . . 4 2 Weapon 7 | 1 1 . . . 3 2 . Tool/Special 5 | . . . . . 2 2 1 Average Slot Usage (%) 84 | . 99 100 100 100 71 75 52 Engine 10 | . 14 14 14 14 9 7 4 Treads 3 | . 4 14 14 14 . . . Leg 4 | . 17 . . . . . . Wheel 4 | . 6 14 14 14 . . . Flight 9 | . . . . . 8 23 18 Device 14 | . 13 14 14 14 18 14 8 Storage 10 | . 14 14 14 14 9 7 7 Protection 3 | . . . . . 8 7 2 Energy Gun 5 | . 2 13 14 14 1 5 1 Ballistic Gun 12 | . 25 14 14 14 11 2 1 Launcher 1 | . . . . . 4 . 4 Peak Build Rating 70 | 7 13 21 17 17 61 70 45 Average Rating 35 | 6 10 13 16 17 51 65 24 On Entrance 20 | . 7 13 14 17 17 53 45 Naked Turns . | . . . . . . . . Heaviest Build 56 | 13 56 55 55 55 44 51 55 Greatest Support 61 | 20 20 10 10 10 50 61 24 Greatest Overweight (x) 5 | . 5 5 5 5 . 2 4 Average Overweight (x) 1 | . 2 5 5 5 . . 1 Largest Inventory Capacity 20 | 8 20 20 20 20 20 15 15 Average Capacity 15 | 7 14 20 20 20 14 15 15 Most Carried 20 | 7 17 18 20 20 20 15 12 Average Carried 13 | 3 10 17 19 20 13 14 10 Final Capacity 20 | 8 20 20 20 20 15 15 15 Final Carried 20 | 7 17 17 20 20 15 12 9 Class Distribution -------------------- 99% | Mutant Dominant Class ---------------- Mutant | -10/Materials Mutant | -10/Mines Mutant | -10/Exiles Mutant | -9/Mines Mutant | -8/Materials Mutant | -7/Factory Mutant | -7/Garrison Resources | -11 -10 -10 -10 -9 -8 -7 -7 ----------- Run | Yrd Mat Min Exi Min Mat Fac Gar Matter Collected 2817 | 349 538 151 . . 1010 704 65 Remotely . | . . . . . . . . Salvage Created 2631 | 155 538 116 . . 981 600 241 Parts 173 | 10 50 8 . . 66 21 18 Haulers Intercepted 10 | . 2 . . . 4 4 . Recyclers Shooed 3 | . 2 . . . 1 . . Parts Field Recycled . | . . . . . . . . Retrieved Matter . | . . . . . . . . Parts Self-Destructed . | . . . . . . . . Prevented . | . . . . . . . . Kills | -11 -10 -10 -10 -9 -8 -7 -7 ------- Run | Yrd Mat Min Exi Min Mat Fac Gar Combat Hostiles Destroyed 51 | . 11 5 . . 17 6 12 Guns 18 | . 5 2 . . 7 2 2 Cannons 2 | . . . . . . 2 . AOE 29 | . 6 3 . . 9 1 10 Classes Destroyed 15 | 2 8 . . . 3 2 . Worker 3 | . 2 . . . 1 . . Builder 3 | . 2 . . . 1 . . Tunneler 6 | 4 . . . . 2 . . Hauler 10 | . 2 . . . 4 4 . Recycler 2 | 1 . . . . . 1 . Mechanic 1 | . . . . . 1 . . Operator 2 | . 1 . . . 1 . . Watcher 7 | . 2 . . . 4 1 . Swarmer 24 | . 3 3 . . 7 . 11 Grunt 12 | . 7 2 . . 3 . . Sentry 8 | . . . . . 6 1 1 Hunter 3 | . . . . . 1 2 . Programmer 2 | . . . . . . 2 . Heavy 1 | . . . . . . 1 . Subdweller 1 | . 1 . . . . . . Best Kill Streak 7 | 2 3 3 . . 6 3 7 Combat Bots Only 7 | . 3 3 . . 4 2 7 Max Kills in Single Turn 4 | 1 3 3 . . 4 1 3 Gunslinging . | . . . . . . . . Exploded 4 | . 3 3 . . 4 1 3 Melee . | . . . . . . . . Uniques/NPCs Destroyed . | . . . . . . . . Combat | -11 -10 -10 -10 -9 -8 -7 -7 -------- Run | Yrd Mat Min Exi Min Mat Fac Gar Hostile Shots Fired 316 | . 27 7 . . 75 119 88 Missed 128 | . 5 3 . . 40 58 22 Hits 188 | . 22 4 . . 35 61 66 Projectile 188 | . 22 4 . . 35 61 66 AOE 3 | . 1 . . . . 2 . Critical Strikes 7 | . . . . . 4 2 1 Damage Taken 3396 | . 350 42 . . 660 1317 1027 Core 352 | . 52 . . . 43 98 159 Absorbed by Shields . | . . . . . . . . Ignored by Resistances 14 | . . . . . . . 14 Regen/Repaired (Parts) 48 | . 31 . . . . 17 . Core Remaining (%) 90 | 100 . . . 79 92 . . Volleys Fired 186 | 15 34 4 . . 63 53 17 Largest 2 | 2 2 2 . . 2 2 2 Hottest 130 | 40 63 88 . . 130 112 66 Shots Fired 322 | 30 65 8 . . 119 77 23 Gun 208 | 30 54 6 . . 78 34 6 Cannon 34 | . . . . . . 34 . Launcher 78 | . 11 2 . . 39 9 17 Special 2 | . . . . . 2 . . Kinetic 212 | 30 54 3 . . 66 53 6 Thermal 25 | . . 3 . . 14 8 . Explosive 38 | . 6 2 . . 17 3 10 Electromagnetic 47 | . 5 . . . 22 13 7 Robot Hit Streak 14 | 6 14 5 . . 13 9 1 Robot Miss Streak 6 | 3 2 1 . . 3 6 6 Penetration Max . | . . . . . . . . Secondary Targets 2 | . 1 1 . . . . . Max Gunslinging Chain 1 | . 1 1 . . . . . Shots Hit Robots 191 | 16 39 5 . . 79 45 7 Core Hits 129 | 6 29 7 . . 44 22 21 Critical Kills 2 | . . . . . 1 1 . Critical Parts Destroyed 1 | . . . . . 1 . . Critical Strikes 4 | . . . . . 2 2 . Destroy 2 | . . . . . 2 . . Smash 1 | . . . . . . 1 . Sever 1 | . . . . . . 1 . Melee Attacks 65 | . . . . . . 65 . Impact 43 | . . . . . . 43 . Slashing 22 | . . . . . . 22 . Piercing . | . . . . . . . . Sneak Attacks 5 | . . . . . . 5 . Combat Hostiles 1 | . . . . . . 1 . Follow-up Attacks . | . . . . . . . . Damage Inflicted 6354 | 206 967 155 . . 2433 1870 723 Guns 2172 | 206 447 63 . . 922 471 63 Cannons 272 | . . . . . . 272 . Explosions 3060 | . 517 92 . . 1511 280 660 Melee 847 | . . . . . . 847 . Ramming 3 | . 3 . . . . . . Kinetic 2096 | 206 447 29 . . 827 524 63 Thermal 407 | . 23 34 . . 125 146 79 Explosive 1462 | . 378 92 . . 569 47 376 Electromagnetic 1539 | . 116 . . . 912 306 205 Impact 366 | . . . . . . 366 . Slashing 481 | . . . . . . 481 . Piercing . | . . . . . . . . Highest Corruption 12 | . . . . . 1 12 12 Average Corruption 3 | . . . . . 1 3 12 Corruption Purged . | . . . . . . . . Corruption Blocked . | . . . . . . . . Effects 44 | . . . . . 7 25 12 Message Errors 13 | . . . . . 1 9 3 Matter Fused 15 | . . . . . 5 4 6 Heat Flow Errors 2 | . . . . . . . 2 Energy Discharges 6 | . . . . . 1 5 . Parts Fused 1 | . . . . . . 1 . Data Loss (minor) 3 | . . . . . . 2 1 Data Loss (major) 1 | . . . . . . 1 . Misfires 3 | . . . . . . 3 . Overload Shots 4 | . . . . . . 4 . Overflow Damage 164 | . . . . . 67 67 30 Projectiles 4 | . . . . . . 4 . Explosions 97 | . . . . . 67 . 30 Melee 63 | . . . . . . 63 . Knockbacks 5 | . . . . . . 5 . Impact . | . . . . . . . . Kinetic 5 | . . . . . . 5 . Secondary . | . . . . . . . . Self-Inflicted Damage 428 | . 57 . . . 154 46 171 Shots 19 | . 2 . . . 9 2 6 Rammed . | . . . . . . . . Targets Rammed 1 | . 1 . . . . . . Kicked 1 | . 1 . . . . . . Crushed . | . . . . . . . . Highest Temperature 357 | . 26 103 . . 357 112 263 Average Temperature 47 | . 8 56 . . 57 37 64 Received Heat Transfer 441 | . 123 15 . . 189 72 42 Siege Activations . | . . . . . . . . Martial Activations . | . . . . . . . . Shielding Activations . | . . . . . . . . Robots Disrupted . | . . . . . . . . Combat Hostiles . | . . . . . . . . Robots Corrupted 2 | . . . . . 1 1 . Combat Hostiles 2 | . . . . . 1 1 . Parts Fried 10 | . . . . . 7 3 . Impact Corruptions 2 | . . . . . . 2 . Robots Melted . | . . . . . . . . Combat Hostiles . | . . . . . . . . Parts Melted 5 | . . 2 . . 1 1 1 Heat Transferred 656 | . 50 74 . . 222 210 100 Parts Sabotaged . | . . . . . . . . Parts Stolen . | . . . . . . . . Parts Stripped . | . . . . . . . . Power Chain Reactions 10 | . 1 . . . 3 4 2 Alert | -11 -10 -10 -10 -9 -8 -7 -7 ------- Run | Yrd Mat Min Exi Min Mat Fac Gar Maximum Alert Level 1 | . . . . . 1 . 1 Low Security (%) 84 | 100 100 100 . 100 35 100 62 Level 1 15 | . . . . . 64 . 37 Level 2 . | . . . . . . . . Level 3 . | . . . . . . . . Level 4 . | . . . . . . . . Level 5 . | . . . . . . . . High Security . | . . . . . . . . Max Security . | . . . . . . . . Peak Influence 364 | 10 132 87 . . 364 150 269 Initial 125 | . 3 . . . . 125 57 Average 83 | . 54 21 . . 216 33 178 Influence Increases 2338 | 25 463 137 . . 789 612 312 Destroy 0b10 Robot/C 1000 | . 200 100 . . 340 120 240 Destroy 0b10 Robot/NC 175 | 25 45 . . . 75 30 . Destroy Leader 274 | . 58 20 . . 116 70 10 Allied During Kill 6 | . . . . . 6 . . Successful Hack 111 | . 37 . . . 28 46 . Select Force Hacks 60 | . 60 . . . . . . Disable Machine 150 | . 15 . . . 135 . . Anti-Garrison Action 150 | . . . . . . 150 . Destroy Structure 232 | . 33 17 . . 74 61 47 Partial Spotted 90 | . . . . . 15 75 . Lose Combat Pursuer 90 | . 15 . . . . 60 15 Influence Decreases 2069 | 20 468 137 . . 513 806 125 Entered New Map 178 | . 2 . . . . 151 25 Time Decay 1558 | 20 456 137 . . 467 478 . Lost Part 160 | . 10 . . . 20 30 100 Lost Ally 26 | . . . . . 26 . . Purge Threat 147 | . . . . . . 147 . Squads Dispatched 19 | . 5 . . . 1 13 . Investigation 7 | . 4 . . . . 3 . Extermination 5 | . . . . . . 5 . Reinforcement 5 | . 1 . . . 1 3 . Assault 2 | . . . . . . 2 . Garrison . | . . . . . . . . Intercept . | . . . . . . . . Searches Triggered . | . . . . . . . . Construction Impeded 1 | . . . . . . 1 . Haulers Reinforced . | . . . . . . . . Active Scanning Responses . | . . . . . . . . Cargo Convoy Interrupts 1 | . . . . . . 1 . Stealth | -11 -10 -10 -10 -9 -8 -7 -7 --------- Run | Yrd Mat Min Exi Min Mat Fac Gar Distress Signals 6 | . . . . . 5 1 . Communications Jammed . | . . . . . . . . Distress Signals . | . . . . . . . . Times Spotted 86 | . 20 5 . . 27 19 15 Peak Tracking Total 8 | . 3 3 . . 5 4 8 Tactical Retreats 5 | . 2 . . . . 2 1 Traps | -11 -10 -10 -10 -9 -8 -7 -7 ------- Run | Yrd Mat Min Exi Min Mat Fac Gar Traps Triggered 3 | . . . . . 1 2 . Indirectly . | . . . . . . . . Trap Hack Attempts . | . . . . . . . . Triggered . | . . . . . . . . Disarmed . | . . . . . . . . Reprogrammed . | . . . . . . . . Reused . | . . . . . . . . Traps Extracted . | . . . . . . . . Installed . | . . . . . . . . Triggered . | . . . . . . . . Machines | -11 -10 -10 -10 -9 -8 -7 -7 ---------- Run | Yrd Mat Min Exi Min Mat Fac Gar Machines Disabled 11 | . 1 . . . 9 1 . Max in Single Turn 4 | . 1 . . . 4 1 . Garrison Access 2 | . . . . . 1 1 . Machines Repaired . | . . . . . . . . Machines Dismantled . | . . . . . . . . Machines Sabotaged . | . . . . . . . . Overloaded Fab Kills . | . . . . . . . . Hacking | -11 -10 -10 -10 -9 -8 -7 -7 --------- Run | Yrd Mat Min Exi Min Mat Fac Gar Machines Accessed 29 | . 10 . 2 . 7 10 . Terminals 20 | . 7 . . . 6 7 . Fabricators . | . . . . . . . . Repair Stations 2 | . 1 . . . . 1 . Recycling Units 2 | . 2 . . . . . . Scanalyzers . | . . . . . . . . Garrison Access 3 | . . . . . 1 2 . Total Hacks 74 | . 32 . 2 . 17 23 . Successful 41 | . 19 . 2 . 10 10 . Failed 33 | . 13 . . . 7 13 . Catastrophic 8 | . . . . . 1 7 . Database Lockouts . | . . . . . . . . Manual 54 | . 27 . 1 . 12 14 . Terminals 57 | . 26 . . . 14 17 . Fabricators . | . . . . . . . . Repair Stations 5 | . 3 . . . . 2 . Recycling Units 3 | . 3 . . . . . . Scanalyzers . | . . . . . . . . Garrison Access 7 | . . . . . 3 4 . Terminal Hacks 8 | . 3 . 2 . 1 2 . Record 1 | . . . 1 . . . . Robot Analysis 3 | . 2 . . . 1 . . Unreport Threat 1 | . . . . . . 1 . Locate Traps 2 | . 1 . . . . 1 . Proto ID Catalog 1 | . . . 1 . . . . Fabricator Hacks . | . . . . . . . . Repair Station Hacks 4 | . 2 . . . . 2 . Scan Component 2 | . 1 . . . . 1 . Repair 2 | . 1 . . . . 1 . Recycling Unit Hacks . | . . . . . . . . Scanalyzer . | . . . . . . . . Garrison Access Hacks 2 | . . . . . 1 1 . Unlock Access 1 | . . . . . . 1 . Seal Access 1 | . . . . . 1 . . Unauthorized Hacks 27 | . 14 . . . 8 5 . Terminals 25 | . 12 . . . 8 5 . Assimilate 3 | . 1 . . . 2 . . Botnet 5 | . 4 . . . 1 . . Operators 1 | . 1 . . . . . . Skim 16 | . 6 . . . 5 5 . Fabricators . | . . . . . . . . Repair Stations . | . . . . . . . . Recycling Units 2 | . 2 . . . . . . Tunnel 2 | . 2 . . . . . . Scanalyzers . | . . . . . . . . Garrison Access . | . . . . . . . . Data Cores Recovered 2 | . . . . . 2 . . Used . | . . . . . . . . Hacking Detections 24 | . 8 . . . 7 9 . Full Trace Events 4 | . 1 . . . . 3 . Feedback Events . | . . . . . . . . Feedback Blocked . | . . . . . . . . Robot Schematics Acquired . | . . . . . . . . Robots Built . | . . . . . . . . Authchips . | . . . . . . . . Time . | . . . . . . . . Total Robot Build Rating . | . . . . . . . . Part Schematics Acquired . | . . . . . . . . Parts Built . | . . . . . . . . Authchips . | . . . . . . . . Time . | . . . . . . . . Total Part Build Rating . | . . . . . . . . Parts Repaired 2 | . 1 . . . . 1 . Time 58 | . 32 . . . . 26 . Parts Recycled . | . . . . . . . . Recycled Matter . | . . . . . . . . Retrieved Matter . | . . . . . . . . Retrieved Components . | . . . . . . . . Parts Scanalyzed . | . . . . . . . . Part Schematics Acquired . | . . . . . . . . Parts Damaged . | . . . . . . . . Bothacking | -11 -10 -10 -10 -9 -8 -7 -7 ------------ Run | Yrd Mat Min Exi Min Mat Fac Gar Used RIF Installer . | . . . . . . . . Robots Hacked . | . . . . . . . . Non-combat . | . . . . . . . . Combat . | . . . . . . . . Robot Hacks Applied . | . . . . . . . . Relay Couplers Released 2 | . . . . . 1 1 . Machine Destruction 2 | . . . . . 1 1 . Fabnet Peak Effective % . | . . . . . . . . Robots Rewired . | . . . . . . . . Allies Hacked . | . . . . . . . . Hacks Repelled . | . . . . . . . . Allies | -11 -10 -10 -10 -9 -8 -7 -7 -------- Run | Yrd Mat Min Exi Min Mat Fac Gar Total Allies 4 | . . . . 3 1 . . Largest Group 3 | . . . . 3 3 . . Highest-Rated Group 40 | . . . . 40 40 . . Highest-Rated Ally 16 | . . . . 16 16 . . Total Orders . | . . . . . . . . Ally Attacks 15 | . . . . . 15 . . Total Damage 156 | . . . . . 156 . . Kills 1 | . . . . . 1 . . Allies Corrupted . | . . . . . . . . Allies Melted . | . . . . . . . . Intel | -11 -10 -10 -10 -9 -8 -7 -7 ------- Run | Yrd Mat Min Exi Min Mat Fac Gar Active Infowar (turns) 6579 | 133 1710 512 617 72 1337 1916 282 Sensors 40 | . . 2 . . 38 . . Structural 3508 | . 2 . . . 1334 1890 282 Seismic 6306 | 133 1708 510 617 72 1304 1916 46 Robot Analysis Total 3 | . 2 . . . 1 . . Derelict Logs Recovered 3 | . . 2 . 1 . . . Drone Launches . | . . . . . . . . Drone Recoveries . | . . . . . . . . Exploration | -11 -10 -10 -10 -9 -8 -7 -7 ------------- Run | Yrd Mat Min Exi Min Mat Fac Gar Turns Passed 6765 | 238 1791 512 617 72 1337 1916 282 Spaces Moved 6068 | 144 1061 308 396 47 1245 2700 167 Core 3 | 3 . . . . . . . Treads . | . . . . . . . . Legs 712 | 141 571 . . . . . . Wheels 1241 | . 490 308 396 47 . . . Hover . | . . . . . . . . Flight 4112 | . . . . . 1245 2700 167 Fastest Speed 34 | 50 110 155 155 155 50 34 104 Average Speed 77 | 118 148 155 155 155 50 35 139 Slowest Speed 295 | 120 190 155 155 155 50 181 295 Overloaded Moves . | . . . . . . . . Propulsion Burnouts . | . . . . . . . . Robots Hopped 1 | . . . . . 1 . . Potential Cave-ins 3 | . . . . . . 3 . Cave-ins Triggered 1 | . . . . . . 1 . Exploration Rate (%) 52 | 5 93 70 79 12 73 52 37 Regions Visited 7 Branch Regions 3 Pre-discovered Areas 7 | . 2 2 1 . 2 . . Known Exits Taken 3 | . 1 . . . 1 1 . Unknown Exits Taken 4 | 1 . 1 1 1 . . . Scrap Searched 1 | . . 1 . . . . . Spaces Dug 69 | . 11 . . . 7 51 . Terrain Destroyed 253 | . 41 22 . . 85 66 39 Melee 43 | . . . . . . 43 . Projectile 12 | . . . . . 1 11 . AOE 198 | . 41 22 . . 84 12 39 Terrain Rammed . | . . . . . . . . Walls Destroyed . | . . . . . . . . Machines Disabled . | . . . . . . . . Actions | -11 -10 -10 -10 -9 -8 -7 -7 --------- Run | Yrd Mat Min Exi Min Mat Fac Gar Total 7703 | 179 1225 333 401 46 1846 3482 191 Wait 1085 | 4 61 12 . . 447 561 . Move 6059 | 143 1060 307 395 46 1242 2699 167 Hop 1 | . . . . . 1 . . Pick Up 80 | 9 24 2 3 . 20 22 . Fast Attach 29 | 6 1 . . . 8 12 2 Attach 16 | 1 1 . . . 6 5 3 Detach 4 | . . . . . 4 . . Swap 88 | . 24 6 . . 31 25 2 Drop 83 | 1 19 2 3 . 24 34 . Fire 186 | 15 34 4 . . 63 53 17 Melee 65 | . . . . . . 65 . Ram . | . . . . . . . . Kick 1 | . 1 . . . . . . Crush . | . . . . . . . . Escape Stasis 6 | . . . . . . 6 . Rewire . | . . . . . . . . Trap . | . . . . . . . . Miscellaneous . | . . . . . . . . Route ------- -11/Scrapyard -10/Materials (discovered 5 exits: *Mat x3 / *Min / [*Sub]) -10/Mines (discovered 3 exits: *Mat x2 / *Exi) -10/Exiles (discovered 2 exits: [*Min x2]) -9/Mines -8/Materials (discovered 3 exits: *Fac x3) -7/Factory (discovered 4 exits: *Fac x3 / Gar) -7/Garrison (discovered 1 exit: *Fac) History --------- Turn | Location | Event 7 | -11/Scrapyard | Discovered new exit (range 15) 239 | -11/Scrapyard | Entered Materials 305 | -10/Materials | Build established: Mutant 337 | -10/Materials | Discovered new exit (range 12) 418 | -10/Materials | Discovered new exit (range 13) 424 | -10/Materials | Discovered new exit (range 16) 601 | -10/Materials | Discovered new exit (range 9) 851 | -10/Materials | Discovered new exit (range 16) 1239 | -10/Materials | Derelicts attacked the area 1663 | -10/Materials | Learned location of 1 exit from Storage 1700 | -10/Materials | Learned 2 Storage zone layouts 1756 | -10/Materials | Learned Storage trap positions 1758 | -10/Materials | Identified exit to Mines 1759 | -10/Materials | Learned 4 Subcaves zone layouts 1763 | -10/Materials | Loaded intel: 6 trap records 1776 | -10/Materials | Loaded intel: 1 repair station location 1795 | -10/Materials | Repaired EMP Blaster 1800 | -10/Materials | Learned Storage stockpile data 2030 | -10/Materials | Entered Mines 2031 | -10/Mines | Identified exit to Materials 2054 | -10/Mines | Learned location of Mines (-9) 2145 | -10/Mines | Found a damaged Exp. Sensor Array with a note attached 2149 | -10/Mines | Found Prototype Device 2150 | -10/Mines | Identified Exp. Sensor Array 2160 | -10/Mines | Learned 8 Materials zone layouts 2206 | -10/Mines | Learned location of Storage (-9) 2536 | -10/Mines | Deemed a non-threat by the Exiles lab entrance 2536 | -10/Mines | Discovered new exit (range 5) 2542 | -10/Mines | Entered Exiles 2575 | -10/Exiles | Discovered new exit (range 14) 2636 | -10/Exiles | Met 8R-AWN 2662 | -10/Exiles | Met EX-HEX 2709 | -10/Exiles | Met EX-BIN 2732 | -10/Exiles | Aligned with FarCom system 2734 | -10/Exiles | Given EX-Vault access code 2769 | -10/Exiles | Opened EX-Vault 2783 | -10/Exiles | Found Flying Fortress v7 2815 | -10/Exiles | Warned to stay clear of 0b10 Research branches 2860 | -10/Exiles | Met EX-DEC 2871 | -10/Exiles | Learned location of Zion (-7) 2934 | -10/Exiles | Visited The Gauntlet 3097 | -10/Exiles | Discovered new exit (range 11) 3159 | -10/Exiles | Left Exiles lab with Flying Fortress v7 3159 | -10/Exiles | Entered Mines 3163 | -9/Mines | Assisted by bots powering up and referring to "LRC-V3" 3200 | -9/Mines | Discovered new exit (range 7) 3217 | -9/Mines | Learned Materials stockpile data 3231 | -9/Mines | Entered Materials 3231 | -8/Materials | Accompanied by 3 allies 3231 | -8/Materials | Evolved 4 slots: Propulsion x2, Utility x2 3232 | -8/Materials | Identified exit to Factory 3375 | -8/Materials | Met 7R-MNS 3735 | -8/Materials | Discovered exit to Factory (range 5) 4285 | -8/Materials | Learned Storage machine intel 4389 | -8/Materials | Learned Storage stockpile data 4428 | -8/Materials | Learned Factory stockpile data 4455 | -8/Materials | Learned location of 3 exits from Factory 4473 | -8/Materials | Learned Factory stockpile data 4480 | -8/Materials | Learned Storage trap positions 4557 | -8/Materials | Learned 2 Storage zone layouts 4568 | -8/Materials | Entered Factory 4568 | -7/Factory | Evolved 2 slots: Propulsion x2 4569 | -7/Factory | Caught up to 7R-MNS 4569 | -7/Factory | Identified exit to Factory 5055 | -7/Factory | Cargo convoy interrupted 5197 | -7/Factory | Found PL-3XN's Ring of Power 5883 | -7/Factory | Repaired Structural Scanner 6413 | -7/Factory | Crushed by falling debris 6413 | -7/Factory | System corruption reached 10% 6483 | -7/Factory | Identified exit to Garrison 6484 | -7/Factory | Entered Garrison 6530 | -7/Garrison | Triggered checkpoint 6534 | -7/Garrison | Triggered checkpoint 6579 | -7/Garrison | Destroyed 7 combat bots 6585 | -7/Garrison | Lost 6 parts (2n3u1w) 6621 | -7/Garrison | Discovered exit to Factory (range 10) 6658 | -7/Garrison | Triggered checkpoint 6749 | -7/Garrison | Lost 3 parts (1n2w) 6766 | -7/Garrison | Self-destructed Last Messages --------------- alarm sounds. 06660_ Cld. Deuterium Engine destroyed. 06660_ Destroyed Cld. Deuterium Engine. 06660_ S-27 Virus destroyed. 06670_ Acquired 6 matter. 06675_ System corrupted: Heat flow error (+172). 06697_ System corrupted: Matter fused (-5). 06709_ Critical hit (Destroy). 06709_ Grenade Launcher destroyed. 06710_ Xenon Bombardment Thruster destroyed. 06718_ EM Shotgun destroyed. 06725_ 1QERIZZ,SX 06742_ Acquired 16 matter. 06745_ System corrupted: Matter fused (-8). 06747_ Acquired VTOL Module. 06750_ Acquired 20 matter. 06753_ Acquired VTOL Module. 06765_ ALERT: Dispatching investigation squad to Factory. Map ----- +----------------------------------------------------+ | #### * ###???????????????????????????????????????? | | """# #???????????????????????????????????????? | | "# #####################???????????????????? | | #???????????????????? | | #???????????????????? | | """## ######## < ######### #???????????????????? | | ##### #??????# #???????# #???????????????????? | | ????# #??????#####???????# #???????????????????? | | ????# #??????????????????# #???????????????????? | | ????# #?????????????s????# #???????????????????? | | ????# #??????????????????# #???????????????????? | | ????# #??????????????????# #???????????????????? | | ????# #??????????????????# #?????????????????### | | ????# #??????????????????# #?????????????????# | | ????# #??????????????????# #?????????????????# | | ????# #??????????????????# #?????????????????# | | ????# #??????????????????# #?????????????????# | | ????# #??????????????????# #?????????????????# | | ????# #??????????????????# #?????????????????# | | ????# #??????????????????# #?????????????????# | | ????# #??????????????????# #?#######???####### | | ????# #??????????????????# #?# ##### ## | | ????# #??????????????????# #?# # # ## ## | | ????# #################### ### | | ????# # %= | | ????# * @# | | ????############################ # # ## | | ??????????????????????????????# #### ## | | ??????????????????????????????##### [ % | | ??????????????????????????????????# | | ???????????????????????????????? | | ???????????????????????????????#### | | ??????????????????????????????????###[ ## ## | | ???????????????????????????????????# % ## #? | | ?????????????????????????????????? ! ^ | | ????????????????????????????????? | | ????????????????????????????????## ^ | | ?????????????????????????????????# ## ##""""## | | ?????????????????????????????????? #?# #????????? | | ?????????????????????????????????????# #????????? | | ?????????????????????????????????????? ?????????? | | ?????????????????????????????????????????????????? | | ?????????????????????ggg?????????????????????????? | | ?????????????????????????????????????????????????? | | ?????????????????????????????????????????????????? | | ?????????????????????????????????????????????????? | | ?????????????????????????????????????????????????? | | ?????????????????????????????????????????????????? | | ?????????????????????????????????????????????????? | | ?????????????????????????????????????????????????? | +----------------------------------------------------+ Best States ------------- Heat Dissipation 34 Energy Generation 18 Energy Capacity 310 Matter Stores 300 Matter Capacity 300 Sight Range 16 Robot Scan Range 20 Terrain Scan Density 10 Armor Coverage 450 Resistance: TH 15 Evasion (%) 63 Item Schematics ----------------- None Robot Schematics ------------------ None Fabricated ------------ Nothing Repaired ---------- EMP Blaster | 55% | -10/Materials Structural Scanner | 15% | -7/Factory Alien Tech Used ----------------- None Achievements -------------- None Challenges ------------ None Game ------ Seed WarlordSpikedMatrix Manual? 0 Play Time 01:27:55 Cumulative 122.9 hours Start 2025.08.16 @ 14:08:22 End 2025.08.16 @ 18:45:05 Sessions 3 Manual Loads 0 Difficulty Rogue Special Mode None Game No. 134 Rogue 134 Adventurer 0 Explorer 0 Win Type - Total 0 Types 0/0/0/0/0/0/0/0/0/0 Lore% 61 Gallery% 45 Achievement% 37 Wizard Run 0 Options --------- Layout 1 ASCII 0 Keyboard 0 Movement Mouse Keybinds 0 Fullscreen 2 Font 48/Smallcaps Map View 50x35 Zoom Use 0% Tactical HUD 1 Map Filters NONE Filters NONE Steam 0 RUN: e8d9457c-c291-41c4-a2ab-ccb0f167dbf8